bitfinex-derivatives/quotes_ETHF0:USTF0_20250507
["timestamp","ask_amount","ask_price","bid_price","bid_amount"]
[1746645156251,2.0812,1801.3,1801.2,4.7102]
[1746645156556,1.11013,1801.4,1801.3,1.11014]
[1746645156756,3.19133,1801.4,1801.3,3.41124]
[1746645157155,3.19133,1801.4,1801.3,5.9011]
[1746645157456,3.19133,1801.4,1801.3,7.01124]
[1746645157856,3.19133,1801.4,1801.3,9.16484]
[1746645158861,2.0812,1801.4,1801.3,9.16484]
[1746645159159,1.11008,1801.4,1801.3,9.16484]
[1746645159358,3.26018,1801.4,1801.3,9.16484]
[1746645161157,3.26018,1801.4,1801.3,5.9011]
[1746645161359,8.26018,1801.4,1801.3,3.6]
[1746645161854,8.47326952,1801.4,1801.3,3.6]
[1746645162158,1.11032,1801.0,1800.9,1.11037]
[1746645162354,3.2078,1801.1,1800.8,9.59729848]
[1746645162559,1.11034,1801.0,1800.9,3.29444]
[1746645162765,1.11038,1800.9,1800.8,8.52361848]
[1746645163461,1.11038,1800.9,1800.8,10.70771848]
[1746645163758,3.34216,1801.0,1800.9,1.11038]
[1746645163960,3.34216,1801.0,1800.9,3.27588]
[1746645164160,3.34216,1801.0,1800.9,6.87588]
[1746645164461,3.34216,1801.0,1800.9,5.7655]
[1746645165562,3.34216,1801.0,1800.9,6.87588]
[1746645166357,3.34216,1801.0,1800.9,3.6]
[1746645168364,3.34216,1801.0,1800.9,4.71038]
[1746645168567,2.2318,1801.0,1800.9,6.93158]
[1746645168768,4.31794,1801.3,1801.2,1.1102]
[1746645169161,4.31794,1801.3,1801.2,4.7102]
[1746645169459,6.44794,1801.3,1801.2,4.7102]
[1746645169759,5.3378,1801.3,1801.2,6.9314]
[1746645169961,5.65218997,1801.4,1801.3,1.11014]
[1746645170160,5.65218997,1801.4,1801.3,5.61454]
[1746645171164,6.76226997,1801.4,1801.3,9.21454]
[1746645171360,6.76226997,1801.4,1801.3,8.1044]
[1746645171558,11.32776997,1801.4,1801.3,4.71014]
[1746645172262,10.21768997,1801.4,1801.3,3.31274]
[1746645172569,3.49830475,1801.4,1801.3,3.31274]
[1746645172757,5.78660475,1801.4,1801.3,1.11014]
[1746645173163,5.78660475,1801.4,1801.3,3.6]
[1746645173860,5.78660475,1801.4,1801.3,4.71014]
[1746645174070,0.11102475,1801.4,1801.3,4.71014]
[1746645175866,1.22110475,1801.4,1801.3,3.6]
[1746645176166,5.71420475,1801.4,1801.3,3.6]
[1746645176661,5.71420475,1801.4,1801.3,4.71014]
[1746645177170,3.38380475,1801.4,1801.3,4.71014]
[1746645178171,2.27372475,1801.4,1801.3,4.71014]
[1746645178369,1.22110475,1801.4,1801.3,3.6]
[1746645178577,3.43160475,1801.4,1801.3,3.6]
[1746645179470,3.43160475,1801.4,1801.3,4.71014]
[1746645179863,3.43160475,1801.4,1801.3,3.6]
[1746645180365,2.32152475,1801.4,1801.3,4.71014]
[1746645180569,0.11102475,1801.4,1801.3,6.87614]
[1746645180959,1.22110475,1801.4,1801.3,6.87614]
[1746645181159,0.11102475,1801.4,1801.3,6.87614]
[1746645183977,0.11102475,1801.4,1801.3,9.10844]
[1746645185075,3.33212,1801.7,1801.6,1.10995]
[1746645186177,3.33212,1801.7,1801.6,5.38835]
[1746645186486,3.2078,1801.9,1801.8,1.10983]
[1746645186672,4.31759,1801.9,1801.8,1.10983]
[1746645186872,7.69906522,1802.0,1801.9,1.10977]
[1746645187071,5.54116522,1802.0,1801.9,1.10977]
[1746645187275,5.54116522,1802.0,1801.9,4.70977]
[1746645187474,6.65087522,1802.0,1801.9,4.70977]
[1746645187670,5.54116522,1802.0,1801.9,9.07537]
[1746645188274,6.65087522,1802.0,1801.9,9.07537]
[1746645188475,8.79597522,1802.0,1801.9,9.07537]
[1746645188675,5.54116522,1802.0,1801.9,9.07537]
[1746645189077,5.54116522,1802.0,1801.9,11.28207]
[1746645189481,7.37746799,1802.1,1802.0,1.10971]
[1746645189679,7.15854853,1802.2,1802.1,1.10964]
[1746645190176,7.15854853,1802.2,1802.1,8.31634]
[1746645191281,5.52728539,1802.6,1802.5,1.1094]
[1746645191882,5.52728539,1802.6,1802.5,46.465]
[1746645192279,5.52728539,1802.6,1802.5,50.065]
[1746645195385,4.4536,1802.9,1802.5,50.065]
[1746645195572,5.56278,1802.9,1802.8,1.10921]
[1746645195777,1.10924,1802.8,1802.7,1.10923]
[1746645195974,5.5628,1802.9,1802.8,1.10921]
[1746645196172,1.10921,1802.8,1802.7,2.289]
[1746645196379,3.29391,1802.8,1802.7,3.39828]
[1746645197080,1.10921,1802.8,1802.7,3.39828]
[1746645197289,1.10921,1802.8,1802.7,6.99828]
[1746645198288,5.56279,1802.9,1802.8,1.10921]
[1746645198776,5.56279,1802.9,1802.8,3.27261]
[1746645200684,5.56279,1802.9,1802.6,5.98109]
[1746645200685,1.10928,1802.7,1802.6,3.2078]
[1746645200888,1.10928,1802.7,1802.6,1.10933]
[1746645201385,1.10934,1802.6,1802.5,50.04725]
[1746645201889,1.10934,1802.6,1802.5,9.24725]
[1746645202281,3.38512,1802.7,1802.6,1.10934]
[1746645203981,3.38512,1802.7,1802.6,3.28394]
[1746645206284,3.38512,1802.7,1802.6,1.10934]
[1746645210185,2.2758,1802.7,1802.6,1.10934]
[1746645210383,3.38508,1802.7,1802.6,1.10934]
[1746645210585,3.38508,1802.7,1802.6,3.41354]
[1746645210989,2.2758,1802.7,1802.6,3.41354]
[1746645211193,3.38508,1802.7,1802.6,3.41354]
[1746645212194,2.2758,1802.7,1802.6,3.41354]
[1746645212387,1.10927,1802.8,1802.7,1.10928]
[1746645212685,1.10927,1802.8,1802.7,3.28988]
[1746645213188,3.37457,1802.8,1802.7,6.88988]
[1746645213792,3.37457,1802.8,1802.7,4.70928]
[1746645216388,3.37457,1802.8,1802.7,3.6]
[1746645216788,3.37457,1802.8,1802.7,4.70928]
[1746645217094,3.37457,1802.8,1802.7,3.6]
[1746645218794,3.37457,1802.8,1802.7,4.70928]
[1746645219895,3.37457,1802.8,1802.7,3.6]
[1746645220891,3.37457,1802.8,1802.7,4.70928]
[1746645221397,3.37457,1802.8,1802.7,1.10928]
[1746645223606,1.10928,1802.7,1802.6,3.3892]
[1746645223791,3.40398,1802.7,1802.6,3.3892]
[1746645224394,3.40398,1802.7,1802.6,1.1093]
[1746645225002,3.40398,1802.7,1802.6,3.3999]
[1746645225299,3.40398,1802.7,1802.6,2.2906]
[1746645226502,3.40398,1802.7,1802.6,3.39994]
[1746645226893,3.40398,1802.7,1802.6,2.2906]
[1746645227201,1.10952,1802.3,1802.1,7.46811]
[1746645227395,1.10952,1802.3,1802.2,1.10954]
[1746645227894,1.10952,1802.3,1802.2,3.28074]
[1746645228403,1.10952,1802.3,1802.2,6.88074]
[1746645229304,3.36909,1802.4,1802.3,1.10952]
[1746645229505,3.36909,1802.4,1802.3,3.28072]
[1746645230204,3.36909,1802.4,1802.3,6.88072]
[1746645230900,3.36909,1802.4,1802.3,4.70952]
[1746645231204,3.36909,1802.4,1802.1,50.50781]
[1746645231205,1.10952,1802.3,1802.2,1.10955]
[1746645231504,2.77397,1802.2,1801.8,11.73079848]
[1746645231802,1.10977,1801.9,1801.8,12.97269848]
[1746645232202,1.10977,1801.9,1801.8,16.57269848]
[1746645232807,3.38667,1801.9,1801.8,16.57269848]
[1746645234697,3.38667,1801.9,1801.8,13.19109848]
[1746645235306,3.38667,1801.9,1801.8,7.41319848]
[1746645235307,6.59447,1801.9,1801.8,7.41319848]
[1746645235603,1.10995,1801.6,1801.5,7.41319848]
[1746645236199,1.10995,1801.6,1801.5,11.01319848]
[1746645236395,3.35015,1801.6,1801.5,11.01319848]
[1746645236899,3.35015,1801.6,1801.5,12.12320848]
[1746645237103,3.35015,1801.6,1801.5,11.01319848]
[1746645237502,3.35015,1801.6,1801.5,12.12320848]
[1746645237709,3.35015,1801.6,1801.5,11.01319848]
[1746645238312,3.35015,1801.6,1801.5,12.12320848]
[1746645238704,3.35015,1801.6,1801.5,4.71001]
[1746645239008,6.59534,1801.7,1801.6,1.10995]
[1746645239208,6.59534,1801.7,1801.6,2.2868]
[1746645239411,2.2008,1801.8,1801.7,1.10989]
[1746645239614,1.10981,1801.9,1801.8,1.10983]
[1746645239813,1.10981,1801.9,1801.8,5.71533]
[1746645240221,1.10981,1801.9,1801.8,9.31533]
[1746645240409,3.31054,1802.0,1801.9,1.10977]
[1746645240609,3.31054,1802.0,1801.9,3.41687]
[1746645240915,3.31054,1802.0,1801.9,2.3071]
[1746645241123,3.31054,1802.0,1801.9,3.41687]
[1746645241323,3.31054,1802.0,1801.9,7.01687]
[1746645241718,4.31749,1802.1,1801.9,7.01687]
[1746645241919,3.2078,1802.1,1802.0,5.52141]
[1746645242315,6.48504,1802.1,1802.0,5.52141]
[1746645243126,6.48504,1802.1,1802.0,9.12141]
[1746645243324,6.48504,1802.1,1802.0,5.9071]
[1746645243625,6.48504,1802.1,1802.0,3.6]
[1746645244220,1.10971,1802.0,1801.9,1.10975]
[1746645244526,3.23601,1802.0,1801.9,1.10975]
[1746645244724,3.23601,1802.0,1801.8,2.2984]
[1746645244725,1.10977,1801.9,1801.8,3.40818]
[1746645244927,1.10977,1801.9,1801.8,5.64158]
[1746645244928,3.23607,1801.9,1801.8,5.64158]
[1746645245225,1.10993,1801.7,1801.6,1.10991]
[1746645245421,1.10993,1801.7,1801.6,3.34331]
[1746645245725,1.10989,1801.7,1801.6,3.3433]
[1746645245927,5.55115,1801.8,1801.7,1.10989]
[1746645246126,5.55115,1801.8,1801.7,3.27679]
[1746645246427,5.55113,1801.8,1801.7,3.27679]
[1746645247322,5.55113,1801.8,1801.7,3.6]
[1746645248426,1.10995,1801.6,1801.5,8.6243]
[1746645248828,1.10995,1801.6,1801.5,5.3474]
[1746645249025,1.10995,1801.6,1801.5,2.1396]
[1746645249226,1.10995,1801.6,1801.5,5.7396]
[1746645249630,3.22115,1801.6,1801.5,5.7396]
[1746645251224,2.1112,1801.6,1801.5,6.84961]
[1746645251424,3.22115,1801.6,1801.5,11.46591]
[1746645251936,2.315,1801.8,1801.5,10.3559]
[1746645252137,2.315,1801.8,1801.7,1.10989]
[1746645252138,1.10987,1801.8,1801.7,1.10989]
[1746645252635,1.10989,1801.7,1801.6,3.33232]
[1746645253230,3.33159,1801.7,1801.6,3.33232]
[1746645254936,3.33159,1801.7,1801.6,2.2224]
[1746645255734,3.33159,1801.7,1801.5,6.84961]
[1746645255735,1.10995,1801.6,1801.5,6.84961]
[1746645255935,3.37875,1801.6,1801.5,6.84961]
[1746645256438,1.10994,1801.7,1801.6,1.10995]
[1746645256734,1.10994,1801.7,1801.6,5.56095]
[1746645257138,3.37874,1801.7,1801.6,5.56095]
[1746645259944,3.37874,1801.7,1801.6,4.451]
[1746645260239,3.37874,1801.7,1801.6,5.56095]
[1746645262746,1.1098,1801.9,1801.8,1.10983]
[1746645263340,1.1098,1801.9,1801.8,6.94333]
[1746645264237,1.10976,1802.0,1801.9,1.10971]
[1746645264440,1.10964,1802.2,1802.1,1.10964]
[1746645265142,6.45972,1802.4,1802.3,1.10952]
[1746645265347,3.25192,1802.4,1802.3,1.10952]
[1746645265742,1.10944,1802.5,1802.4,1.10941]
[1746645266043,1.10946,1802.4,1802.3,5.46388]
[1746645266243,1.10945,1802.5,1802.4,1.10946]
[1746645267145,1.10945,1802.5,1802.4,4.70946]
[1746645268046,1.10927,1802.8,1802.7,1.10928]
[1746645268234,7.08682,1802.9,1802.5,5.4896]
[1746645268441,1.10934,1802.6,1802.5,3.39114]
[1746645268750,1.10932,1802.7,1802.6,1.10934]
[1746645269540,1.10934,1802.6,1802.5,6.9912]
[1746645269735,1.10934,1802.6,1802.5,5.8818]
[1746645269943,1.10934,1802.6,1802.5,3.6]
[1746645270240,1.10946,1802.4,1802.3,3.32291]
[1746645270749,1.10952,1802.3,1802.2,3.2078]
[1746645270944,1.10958,1802.2,1802.1,3.39142]
[1746645271448,1.10958,1802.2,1802.1,2.2818]
[1746645271650,1.10964,1802.1,1802.0,11.52076]
[1746645272245,1.10964,1802.1,1802.0,6.84076]
[1746645272454,1.10964,1802.1,1802.0,3.6]
[1746645272944,1.10977,1801.9,1801.8,7.41319848]
[1746645273138,4.31757,1801.9,1801.8,7.41319848]
[1746645273343,9.31757,1801.9,1801.8,7.41319848]
[1746645273551,1.10983,1801.8,1801.7,6.82915055]
[1746645273856,3.35993,1801.8,1801.7,4.00703055]
[1746645274049,1.10989,1801.7,1801.6,33.36052757]
[1746645274350,6.66984036,1801.7,1801.6,33.36052757]
[1746645274551,11.66984036,1801.7,1801.6,33.36052757]
[1746645274847,11.56779,1801.7,1801.6,33.36052757]
[1746645275051,11.66983934,1801.7,1801.6,33.36052757]
[1746645275243,15.26983934,1801.7,1801.6,33.36052757]
[1746645275855,10.26983934,1801.7,1801.6,33.36052757]
[1746645276655,1.1102,1801.2,1801.1,1.11023]
[1746645276956,1.1102,1801.2,1801.0,3.2078]
[1746645277151,1.1102,1801.2,1801.1,1.11026]
[1746645277346,1.11017,1801.3,1801.1,1.11026]
[1746645277552,1.11017,1801.3,1801.2,1.1102]
[1746645277756,1.11017,1801.3,1801.1,1.11022]
[1746645277959,3.22163,1801.4,1801.2,1.1102]
[1746645278148,3.2078,1801.5,1801.3,3.21543]
[1746645278455,4.31781,1801.5,1801.4,4.2286]
[1746645278655,6.42931,1801.5,1801.4,4.2286]
[1746645279156,6.42931,1801.5,1801.4,7.8286]
[1746645279866,6.42931,1801.5,1801.4,3.6]
[1746645280249,1.11008,1801.4,1801.3,5.8494]
[1746645280550,1.11008,1801.4,1801.3,6.95954]
[1746645281153,3.2078,1801.5,1801.4,1.11008]
[1746645281359,1.11,1801.6,1801.5,1.11]
[1746645281560,1.11,1801.6,1801.4,2.2494]
[1746645281561,1.11001,1801.5,1801.4,3.35943]
[1746645281961,6.52159,1801.6,1801.5,1.11001]
[1746645282259,1.11001,1801.5,1801.4,4.71003]
[1746645282469,1.11001,1801.5,1801.4,3.6]
[1746645282765,3.26221,1801.5,1801.4,3.6]
[1746645284161,1.11014,1801.3,1801.2,1.11015]
[1746645284658,1.1102,1801.2,1801.1,2.1233]
[1746645286262,4.318,1801.2,1801.1,2.1233]
[1746645288867,4.318,1801.2,1801.1,3.23356]
[1746645289162,4.318,1801.2,1801.1,2.1233]
[1746645290663,4.318,1801.2,1801.0,3.6]
[1746645290664,1.11026,1801.1,1801.0,3.6]
[1746645290864,5.40566,1801.1,1801.0,3.6]
[1746645291562,10.06966,1801.1,1801.0,3.6]
[1746645292265,1.11045,1800.8,1800.7,2.2245]
[1746645292958,1.11057,1800.6,1800.5,3.15652]
[1746645293160,3.2078,1800.7,1800.4,2.2368]
[1746645293464,4.31843,1800.5,1800.4,2.2368]
[1746645293667,1.11075,1800.3,1800.2,2.0459]
[1746645293861,1.11082,1800.2,1800.1,16.89247414]
[1746645294264,1.11082,1800.2,1800.1,18.00335414]
[1746645294962,5.43,1800.3,1800.1,16.89247414]
[1746645295168,4.31856,1800.3,1800.2,1.11082]
[1746645295370,1.11082,1800.2,1800.1,18.00330414]
[1746645295563,1.1108,1800.3,1800.1,16.89247414]
[1746645295864,2.2028,1800.3,1800.2,1.11082]
[1746645296066,1.1107,1800.4,1800.1,19.66967414]
[1746645296258,1.1107,1800.4,1800.3,1.11072]
[1746645296461,3.2078,1800.5,1800.1,5.014]
[1746645296663,1.1107,1800.4,1800.3,1.1107]
[1746645297164,6.52128,1800.5,1800.4,1.11069]
[1746645297364,1.11069,1800.4,1800.3,4.71072]
[1746645297764,1.11069,1800.4,1800.3,3.6]
[1746645298263,1.11069,1800.4,1800.3,6.87455]
[1746645299069,1.11069,1800.4,1800.3,5.7638]
[1746645299567,1.11069,1800.4,1800.3,6.87455]
[1746645299868,1.11069,1800.4,1800.3,5.7638]
[1746645300068,1.11069,1800.4,1800.3,6.87455]
[1746645300771,1.11069,1800.4,1800.3,5.7638]
[1746645301271,1.11075,1800.3,1800.2,3.6]
[1746645301570,4.31855,1800.3,1800.2,3.6]
[1746645302159,4.31855,1800.3,1800.1,4.3719]
[1746645302160,1.11082,1800.2,1800.1,5.48278]
[1746645303865,1.11082,1800.2,1800.1,4.3719]
[1746645304071,3.17242,1800.2,1800.1,2.2368]
[1746645304468,3.17242,1800.2,1800.0,3.6]
[1746645304469,1.11088,1800.1,1800.0,3.6]
[1746645304668,6.38028,1800.1,1800.0,3.6]
[1746645304866,6.38028,1800.1,1800.0,5.823]
[1746645305173,6.38028,1800.1,1800.0,2.223]
[1746645308878,6.38028,1800.1,1800.0,3.33394]
[1746645309073,5.4006,1800.3,1800.0,2.223]
[1746645309274,5.3796,1800.5,1800.4,1.11069]
[1746645309477,0.45358094,1801.2,1800.3,3.2078]
[1746645309672,8.73707618,1801.3,1800.9,2.77597]
[1746645309973,5.52927618,1801.3,1801.2,1.1102]
[1746645310570,6.63941618,1801.3,1801.2,2.1706]
[1746645310775,13.30467618,1801.3,1800.9,3.6]
[1746645310965,4.31811,1801.1,1800.9,3.6]
[1746645311163,4.31811,1801.1,1800.8,3.6]
[1746645311374,4.31811,1801.1,1800.9,3.28094]
[1746645311575,4.31811,1801.1,1801.0,1.11032]
[1746645311772,4.31811,1801.1,1801.0,2.1706]
[1746645312180,4.31811,1801.1,1801.0,5.7706]
[1746645312479,3.2078,1801.1,1801.0,6.88092]
[1746645312979,4.31806,1801.1,1801.0,5.7706]
[1746645313280,6.43956,1801.1,1801.0,5.7706]
[1746645314377,6.43956,1801.1,1801.0,3.6]
[1746645316185,5.3293,1801.1,1800.8,3.26443]
[1746645316382,2.1274,1801.0,1800.8,3.26443]
[1746645316576,3.23775,1801.0,1800.9,1.11038]
[1746645316775,3.23775,1801.0,1800.9,3.17378]
[1746645316971,4.31807,1801.1,1801.0,1.11032]
[1746645317176,4.31807,1801.1,1801.0,2.0634]
[1746645317473,4.31807,1801.1,1801.0,4.2461]
[1746645318385,4.31807,1801.1,1801.0,5.35642]
[1746645318682,3.2078,1801.1,1801.0,5.35642]
[1746645318880,4.31798,1801.3,1801.2,1.1102]
[1746645319081,1.11014,1801.3,1801.2,1.1102]
[1746645319280,1.11013,1801.4,1801.3,1.11013]
[1746645319479,5.3352,1801.5,1801.4,1.11008]
[1746645319480,6.44523,1801.5,1801.4,1.11008]
[1746645319680,4.31783,1801.5,1801.4,2.1827]
[1746645320170,4.31783,1801.5,1801.4,5.7827]
[1746645320370,4.31783,1801.5,1801.4,7.8808]
[1746645320584,4.31783,1801.5,1801.4,3.6]
[1746645321183,1.1102,1801.2,1801.1,4.1388]
[1746645321479,1.1102,1801.2,1801.1,3.15096]
[1746645321882,3.161,1801.2,1801.1,3.15096]
[1746645322083,1.11032,1801.0,1800.9,2.0981]
[1746645322383,2.167,1801.1,1800.9,2.0981]
[1746645322584,3.27731,1801.1,1801.0,1.11032]
[1746645322778,10.39517,1801.3,1801.0,1.11032]
[1746645322779,1.11024,1801.2,1801.0,1.11032]
[1746645322979,1.11024,1801.2,1801.1,3.19286]
[1746645323280,1.11024,1801.2,1801.1,2.0826]
[1746645323486,3.27724,1801.2,1801.1,2.0826]
[1746645324081,3.27724,1801.2,1801.1,3.19286]
[1746645324688,6.53208,1801.3,1801.2,1.1102]
[1746645324984,4.31798,1801.3,1801.2,4.2871]
[1746645325280,4.31798,1801.3,1801.2,7.8871]
[1746645325474,4.31798,1801.3,1801.2,10.0677]
[1746645326281,4.31798,1801.3,1801.2,7.8871]
[1746645326879,3.2078,1801.3,1801.2,8.9973]
[1746645327176,8.61435,1801.5,1801.4,1.11008]
[1746645327381,1.10997,1801.6,1801.5,1.11001]
[1746645327584,1.11005,1801.5,1801.4,1.11005]
[1746645327782,1.11005,1801.5,1801.4,3.22895]
[1746645328081,3.2078,1801.9,1801.5,2.77503]
[1746645328289,3.2078,1801.9,1801.8,1.10983]
[1746645328485,4.31757,1801.9,1801.8,1.10983]
[1746645329283,4.31757,1801.9,1801.8,4.70983]
[1746645329483,3.2078,1801.9,1801.8,4.70983]
[1746645329785,1.10977,1801.9,1801.8,3.6]
[1746645329982,3.27177,1801.9,1801.8,3.6]
[1746645330183,1.10983,1801.8,1801.7,2.0835]
[1746645330383,3.27183,1801.8,1801.7,2.0835]
[1746645330881,2.162,1801.8,1801.6,2.2937]
[1746645331079,2.26404712,1801.7,1800.7,6.8078]
[1746645331273,1.11038,1800.9,1800.8,4.4242]
[1746645331479,1.11038,1800.9,1800.8,4.4617]
[1746645331779,1.11038,1800.9,1800.5,16.91437414]
[1746645331780,1.11057,1800.6,1800.5,16.91437414]
[1746645331982,4.31837,1800.6,1800.5,19.11737414]
[1746645332188,5.4688,1800.8,1800.6,1.11056]
[1746645332392,1.11057,1800.6,1800.5,22.71737414]
[1746645333091,4.31837,1800.6,1800.5,18.25567414]
[1746645333680,3.2078,1800.6,1800.5,20.42117414]
[1746645333983,3.37148,1800.8,1800.6,1.11054]
[1746645334181,1.11048,1800.8,1800.7,4.3942]
[1746645335088,3.40448,1800.8,1800.7,4.3942]
[1746645335288,3.40448,1800.8,1800.7,7.9942]
[1746645335582,3.2078,1800.9,1800.8,1.11045]
[1746645335884,1.11035,1801.0,1800.8,3.26395]
[1746645336084,11.27555618,1801.1,1800.9,1.11033]
[1746645336286,10.16527618,1801.1,1801.0,3.26382]
[1746645336583,7.32839638,1801.3,1801.2,1.1102]
[1746645336792,1.1102,1801.2,1801.1,2.1498]
[1746645337089,1.11026,1801.1,1801.0,5.7535]
[1746645337385,3.40424,1801.2,1801.0,9.01362]
[1746645337587,3.40424,1801.2,1801.1,2.1787]
[1746645337786,1.11026,1801.1,1801.0,5.7498]
[1746645337990,3.33666,1801.1,1801.0,5.7498]
[1746645338682,1.11026,1801.1,1801.0,5.7498]
[1746645338890,4.31806,1801.1,1801.0,3.6]
[1746645339084,1.11035,1801.0,1800.8,1.11043]
[1746645339284,1.11035,1801.0,1800.9,2.1787]
[1746645339588,1.11051,1800.7,1800.6,4.2785]
[1746645339983,2.2264,1800.9,1800.6,4.2785]
[1746645340184,5.4342,1800.9,1800.6,6.4572]
[1746645340487,1.11051,1800.7,1800.6,4.3797]
[1746645341489,1.11051,1800.7,1800.6,5.49027]
[1746645341689,4.636,1801.0,1800.7,1.11051]
[1746645341990,1.11045,1800.8,1800.7,3.37471]
[1746645342186,1.11045,1800.8,1800.7,6.97471]
[1746645342391,1.11044,1800.9,1800.7,6.97471]
[1746645342579,1.11045,1800.8,1800.7,4.71051]
[1746645342783,1.11045,1800.8,1800.7,3.6]
[1746645344684,3.18645,1800.8,1800.7,3.6]
[1746645345101,5.27995,1800.8,1800.7,3.6]
[1746645346697,1.11045,1800.8,1800.7,3.6]
[1746645346990,3.32875,1800.8,1800.7,3.6]
[1746645347381,6.53655,1800.8,1800.7,3.6]
[1746645347692,1.11075,1800.3,1800.2,0.01958]
[1746645347890,4.31855,1800.3,1800.2,0.01958]
[1746645348081,4.31855,1800.3,1800.2,3.61958]
[1746645348490,1.11075,1800.3,1800.2,3.61958]
[1746645349685,4.31855,1800.3,1800.2,3.61958]
[1746645350290,1.11075,1800.3,1800.2,3.61958]
[1746645350595,1.11075,1800.3,1800.2,3.6]
[1746645351093,3.32145,1800.3,1800.2,3.6]
[1746645351890,6.52925,1800.3,1800.2,4.71082]
[1746645352084,6.52925,1800.3,1800.2,3.6]
[1746645352289,1.11075,1800.3,1800.2,4.71082]
[1746645352494,1.11064,1800.5,1800.4,1.11064]
[1746645353391,1.11064,1800.5,1800.4,4.71064]
[1746645353892,1.11061,1800.6,1800.5,1.11061]
[1746645354197,4.31835,1800.7,1800.6,1.11057]
[1746645354401,3.2732,1800.8,1800.7,1.11051]
[1746645354696,1.11051,1800.7,1800.6,3.21972]
[1746645354900,1.11051,1800.7,1800.6,2.1092]
[1746645355087,1.11057,1800.6,1800.5,5.6926]
[1746645355285,3.27327,1800.6,1800.5,3.6]
[1746645355585,12.33257,1800.6,1800.5,3.6]
[1746645355990,7.69557,1800.6,1800.5,3.6]
[1746645356193,1.11069,1800.4,1800.3,1.11072]
[1746645356793,1.11075,1800.3,1800.2,2.0926]
[1746645357203,1.11075,1800.3,1800.2,5.6926]
[1746645357794,4.31855,1800.3,1800.2,5.6926]
[1746645358090,4.31855,1800.3,1800.2,3.6]
[1746645359186,1.11082,1800.2,1800.1,2.1944]
[1746645359385,1.11088,1800.1,1800.0,2.2168]
[1746645360093,10.1231,1800.3,1800.0,2.2168]
[1746645360293,1.11088,1800.1,1800.0,5.8168]
[1746645361298,1.11088,1800.1,1800.0,6.92774]
[1746645361499,3.2078,1800.3,1800.2,1.11082]
[1746645361801,1.11072,1800.4,1800.3,1.11075]
[1746645362101,3.2078,1800.7,1800.3,2.77689]
[1746645362299,4.31832,1800.7,1800.6,1.11057]
[1746645362498,4.31832,1800.7,1800.4,5.05682]
[1746645362499,3.2078,1800.9,1800.5,5.98438]
[1746645362695,7.32839638,1801.0,1800.6,2.77643]
[1746645362897,1.11041,1800.9,1800.8,1.11044]
[1746645363102,7.32839638,1801.0,1800.7,1.11045]
[1746645363403,1.11044,1800.9,1800.8,3.39205]
[1746645363903,1.11044,1800.9,1800.8,2.2816]
[1746645364103,1.11057,1800.6,1800.5,3.6]
[1746645364300,1.11057,1800.6,1800.5,2.2816]
[1746645364594,1.11057,1800.6,1800.2,2.2722]
[1746645364595,1.11075,1800.3,1800.2,2.2722]
[1746645364798,1.11082,1800.2,1800.1,2.2816]
[1746645365001,1.11094,1800.0,1799.9,2.20159]
[1746645365200,1.11094,1800.0,1799.9,8.08319]
[1746645365394,1.11094,1800.0,1799.9,19.14591104]
[1746645365596,3.24624,1800.0,1799.9,19.14591104]
[1746645365798,3.24624,1800.0,1799.9,14.68381104]
[1746645366201,7.87424,1800.0,1799.9,11.08381104]
[1746645366798,12.87424,1800.0,1799.9,11.08381104]
[1746645367097,10.01664,1800.0,1799.9,11.06272104]
[1746645368494,10.11878865,1800.0,1799.9,11.06272104]
[1746645368694,10.11878694,1800.0,1799.9,11.06272104]
[1746645368895,10.22093631,1800.0,1799.9,11.06272104]
[1746645369497,5.49078694,1800.0,1799.9,11.06272104]
[1746645369692,10.11878694,1800.0,1799.9,11.06272104]
[1746645369906,6.86544694,1800.0,1799.5,2.2713]
[1746645370098,7.97638694,1800.0,1799.9,5.7998]
[1746645372008,7.97638694,1800.0,1799.9,3.6]
[1746645372208,1.11112,1799.7,1799.6,2.1313]
[1746645372611,4.31892,1799.7,1799.6,2.1313]
[1746645373710,6.60942,1799.7,1799.6,2.1313]
[1746645376318,1.11119,1799.6,1799.5,3.6]
[1746645376607,3.40169,1799.6,1799.5,3.6]
[1746645376812,1.11119,1799.6,1799.5,3.6]
[1746645377010,3.23999,1799.6,1799.5,3.6]
[1746645379121,3.23999,1799.6,1799.4,2.1762]
[1746645379122,1.11125,1799.5,1799.4,2.1762]
[1746645379418,3.24005,1799.5,1799.4,2.1762]
[1746645379822,1.11125,1799.5,1799.4,2.1762]
[1746645380119,1.11125,1799.5,1799.4,6.88751]
[1746645381017,3.2078,1799.7,1799.6,1.11119]
[1746645381417,4.31892,1799.7,1799.5,5.5825]
[1746645381623,4.31898,1799.7,1799.6,3.34219]
[1746645381823,0.10214694,1800.0,1799.6,2.231]
[1746645382117,0.10214694,1800.0,1799.9,1.111]
[1746645382421,0.10214694,1800.0,1799.9,4.3188]
[1746645382623,12.35373786,1800.6,1800.1,2.77709]
[1746645382823,1.11071,1800.4,1800.3,1.1107]
[1746645383223,1.11071,1800.4,1800.3,4.7107]
[1746645383420,1.11069,1800.4,1800.3,4.71071]
[1746645383618,1.11069,1800.4,1800.3,3.6]
[1746645383820,1.11065,1800.5,1800.3,3.6]
[1746645384020,1.11069,1800.4,1800.3,3.6]
[1746645384614,1.11069,1800.4,1800.3,4.71072]
[1746645384820,5.3581,1800.6,1800.4,1.11068]
[1746645385016,3.2078,1800.6,1800.5,1.11063]